fUST/lending_fUST_20250505
["ID","MTS","AMOUNT","RATE_DAILY","PERIOD"]
[359918051,1746420637143,-400.0,0.00036164,14]
[359918052,1746420637152,-400.0,0.00036164,14]
[359918053,1746420637162,-370.94,0.00036164,14]
[359918054,1746420637171,-513.93,0.00036164,14]
[359918055,1746420637180,-520.0,0.00036164,14]
[359918056,1746420637189,-160.0,0.00036165,2]
[359918057,1746420637198,-160.0,0.00036165,2]
[359918058,1746420637208,-182.23035355,0.00036165,2]
[359918059,1746420637217,-160.0,0.00036165,2]
[359918060,1746420637226,-160.0,0.00036165,2]
[359918061,1746420637235,-160.0,0.00036165,2]
[359918062,1746420637245,-12601.56422439,0.00036165,2]
[359918063,1746420637254,-4175.35,0.000362,30]
[359918064,1746420637263,-1014.81,0.000362,30]
[359918065,1746420637273,-495.25768979,0.00036245,34]
[359918066,1746420637282,-160.0,0.00036258,2]
[359918067,1746420637291,-495.25768979,0.00036417,34]
[359918068,1746420637300,-400.0,0.00036437,14]
[359918069,1746420637309,-400.0,0.00036437,14]
[359918070,1746420637318,-400.0,0.00036438,14]
[359918071,1746420637327,-400.0,0.00036438,14]
[359918072,1746420637336,-400.0,0.00036438,2]
[359918073,1746420637345,-400.0,0.00036438,14]
[359918074,1746420637468,-400.0,0.00036438,14]
[359918075,1746420637478,-400.0,0.00036438,14]
[359918076,1746420637487,-400.0,0.00036438,14]
[359918077,1746420637497,-334.32975619,0.00036438,14]
[359918078,1746420637506,-400.0,0.00036438,14]
[359918079,1746420637516,-400.0,0.00036438,14]
[359918080,1746420637525,-400.0,0.00036438,14]
[359918081,1746420637535,-400.0,0.00036438,14]
[359918082,1746420637544,-400.0,0.00036438,14]
[359918083,1746420637553,-186.13,0.00036438,14]
[359918084,1746420637562,-400.0,0.00036438,14]
[359918085,1746420637572,-400.0,0.00036438,14]
[359918086,1746420637582,-400.0,0.00036438,14]
[359918087,1746420637591,-400.0,0.00036438,14]
[359918088,1746420637601,-508.3085204,0.00036438,14]
[359918089,1746420637611,-400.0,0.00036438,14]
[359918090,1746420637620,-400.0,0.00036438,14]
[359918091,1746420637629,-200.0,0.00036438,14]
[359918092,1746420637639,-511.12,0.00036438,14]
[359918093,1746420637648,-400.0,0.00036438,14]
[359918094,1746420637658,-400.0,0.00036438,14]
[359918095,1746420637668,-244.81,0.00036438,14]
[359918096,1746420637677,-400.0,0.00036438,14]
[359918097,1746420637686,-172.67538392,0.00036438,14]
[359918102,1746420638526,-400.0,0.00035616,14]
[359918103,1746420638538,-400.0,0.00035616,14]
[359918104,1746420638548,-400.0,0.00035616,14]
[359918105,1746420638558,-400.0,0.0003589,14]
[359918106,1746420638568,-400.0,0.00036164,14]
[359918107,1746420638578,-227.32461608,0.00036438,14]
[359918108,1746420638588,-400.0,0.00036438,14]
[359918109,1746420638597,-358.73,0.00036438,14]
[359918110,1746420638607,-400.0,0.00036438,14]
[359918111,1746420638616,-247.64,0.00036438,14]
[359918112,1746420638626,-176.22,0.00036438,14]
[359918113,1746420638635,-400.0,0.00036438,14]
[359918114,1746420638646,-330.91,0.00036438,14]
[359918115,1746420638655,-19.20600682,0.00036438,14]
[359918116,1746420638667,-380.79399318,0.00036438,14]
[359918117,1746420638677,-400.0,0.00036438,2]
[359918118,1746420638687,-400.0,0.00036438,14]
[359918119,1746420638696,-400.0,0.00036438,14]
[359918120,1746420638705,-296.78,0.00036438,14]
[359918121,1746420638715,-400.0,0.00036438,14]
[359918122,1746420638725,-400.0,0.00036438,14]
[359918123,1746420638734,-400.0,0.00036438,14]
[359918124,1746420638744,-400.0,0.00036438,14]
[359918125,1746420638754,-495.25768979,0.0003659,35]
[359918126,1746420638763,-400.0,0.00036711,14]
[359918127,1746420638773,-400.0,0.00036712,14]
[359918128,1746420638782,-400.0,0.00036712,2]
[359918129,1746420638791,-400.0,0.00036712,14]
[359918130,1746420638800,-255.23362931,0.00036712,14]
[359918131,1746420638810,-400.0,0.00036712,14]
[359918132,1746420638821,-400.0,0.00036712,14]
[359918133,1746420638831,-400.0,0.00036712,14]
[359918134,1746420638840,-400.0,0.00036712,14]
[359918135,1746420638849,-400.0,0.00036712,14]
[359918136,1746420638858,-400.0,0.00036712,14]
[359918137,1746420638868,-400.0,0.00036712,14]
[359918138,1746420638878,-322.31,0.00036712,14]
[359918139,1746420638887,-400.0,0.00036712,14]
[359918140,1746420638896,-400.0,0.00036712,14]
[359918141,1746420638905,-400.0,0.00036712,14]
[359918142,1746420638914,-511.12,0.00036712,14]
[359918143,1746420638924,-500.85002415,0.00036712,14]
[359918144,1746420638933,-400.0,0.00036712,14]
[359918145,1746420638942,-400.0,0.00036712,14]
[359918146,1746420638952,-400.0,0.00036712,14]
[359918147,1746420638961,-400.0,0.00036712,14]
[359918148,1746420638970,-270.68,0.00036712,14]
[359918149,1746420638980,-400.0,0.00036712,14]
[359918150,1746420638989,-400.0,0.00036712,14]
[359918151,1746420638999,-400.0,0.00036712,2]
[359918152,1746420639008,-400.0,0.00036712,14]
[359918153,1746420639018,-400.0,0.00036712,14]
[359918154,1746420639028,-400.0,0.00036712,14]
[359918155,1746420639037,-396.27,0.00036712,14]
[359918156,1746420639047,-400.0,0.00036712,14]
[359918157,1746420639059,-400.0,0.00036712,14]
[359918158,1746420639068,-495.25768979,0.00036762,35]
[359918159,1746420639077,-217.139266,0.00036922,2]
[359918160,1746420639086,-495.25768979,0.00036934,35]
[359918161,1746420639096,-400.0,0.00036986,14]
[359918162,1746420639105,-400.0,0.00036986,2]
[359918163,1746420639115,-400.0,0.00036986,14]
[359918164,1746420639125,-480.38905408,0.00036986,14]
[359918165,1746420639134,-400.0,0.00036986,14]
[359918166,1746420639143,-292.96,0.00036986,14]
[359918167,1746420639153,-400.0,0.00036986,14]
[359918168,1746420639161,-387.09273287,0.00036986,14]
[359918173,1746420640799,-12.90726713,0.00036986,14]
[359918174,1746420640809,-160.5,0.00036986,14]
[359918175,1746420640818,-268.18257877,0.00036986,14]
[359918176,1746420640829,-400.0,0.00036986,14]
[359918177,1746420640837,-239.17863517,0.00036986,14]
[359918178,1746420640847,-63.1815189,0.00036986,14]
[359918202,1746420643651,-447.9384811,0.00036986,14]
[359918203,1746420643661,-443.2925147,0.00036986,14]
[359918204,1746420643671,-439.0,0.00036986,14]
[359918205,1746420643680,-400.0,0.00036986,14]
[359918206,1746420643689,-400.0,0.00036986,14]
[359918207,1746420643699,-152.89166137,0.00036986,2]
[359918219,1746420646782,-247.10833863,0.00036986,2]
[359918220,1746420646792,-400.0,0.00036986,14]
[359918221,1746420646802,-400.0,0.00036986,14]
[359918222,1746420646812,-400.0,0.00036986,14]
[359918223,1746420646822,-364.36,0.00036986,14]
[359918224,1746420646831,-183.42501882,0.00037107,36]
[359918225,1746420646844,-311.83267097,0.00037107,36]
[359918226,1746420646854,-400.0,0.0003726,14]
[359918227,1746420646863,-400.0,0.0003726,2]
[359918228,1746420646873,-400.0,0.0003726,14]
[359918229,1746420646883,-124.28760393,0.0003726,14]
[359918230,1746420646895,-275.71239607,0.0003726,14]
[359918231,1746420646905,-400.0,0.0003726,14]
[359918232,1746420646914,-143.93595677,0.0003726,14]
[359918233,1746420647010,-256.06404323,0.0003726,14]
[359918234,1746420647020,-71.33135111,0.0003726,14]
[359918235,1746420647032,-328.66864889,0.0003726,14]
[359918236,1746420647041,-511.12,0.0003726,14]
[359918237,1746420647051,-191.0220644,0.0003726,14]
[359918238,1746420647061,-400.0,0.0003726,14]
[359918239,1746420647071,-400.0,0.0003726,2]
[359918240,1746420647081,-400.0,0.0003726,14]
[359918241,1746420647091,-400.0,0.0003726,14]
[359918242,1746420647101,-400.0,0.0003726,14]
[359918243,1746420647110,-495.25768979,0.00037279,36]
[359918244,1746420647120,-495.25768979,0.00037452,36]
[359918245,1746420647130,-400.0,0.00037534,14]
[359918246,1746420647139,-400.0,0.00037534,2]
[359918247,1746420647149,-400.0,0.00037534,14]
[359918248,1746420647158,-400.0,0.00037534,14]
[359918249,1746420647167,-400.0,0.00037534,14]
[359918250,1746420647178,-395.0,0.00037534,14]
[359918251,1746420647187,-400.0,0.00037534,14]
[359918252,1746420647197,-511.12,0.00037534,14]
[359918253,1746420647206,-549.29,0.00037534,14]
[359918254,1746420647216,-400.0,0.00037534,2]
[359918255,1746420647226,-400.0,0.00037534,14]
[359918256,1746420647235,-400.0,0.00037534,14]
[359918257,1746420647244,-400.0,0.00037534,14]
[359918258,1746420647254,-495.25768979,0.00037624,37]
[359918259,1746420647263,-495.25768979,0.00037797,37]
[359918260,1746420647273,-400.0,0.00037808,14]
[359918261,1746420647282,-400.0,0.00037808,2]
[359918262,1746420647291,-400.0,0.00037808,14]
[359918263,1746420647300,-337.80988859,0.00037808,14]
[359918264,1746420647310,-400.0,0.00037808,14]
[359918265,1746420647319,-400.0,0.00037808,14]
[359918266,1746420647328,-511.12,0.00037808,14]
[359918267,1746420647338,-400.0,0.00037808,2]
[359918268,1746420647348,-400.0,0.00037808,14]
[359918269,1746420647357,-400.0,0.00037808,14]
[359918270,1746420647366,-400.0,0.00037808,14]
[359918271,1746420647375,-862.49,0.000379,7]
[359918272,1746420647384,-495.25768979,0.00037969,37]
[359918273,1746420647393,-4175.35,0.00038,30]
[359918274,1746420647403,-400.0,0.00038082,14]
[359918275,1746420647412,-400.0,0.00038082,2]
[359918276,1746420647421,-400.0,0.00038082,14]
[359918277,1746420647431,-400.0,0.00038082,14]
[359918278,1746420647440,-400.0,0.00038082,14]
[359918279,1746420647450,-511.12,0.00038082,14]
[359918280,1746420647459,-400.0,0.00038082,2]
[359918281,1746420647468,-400.0,0.00038082,14]
[359918282,1746420647478,-407.23,0.00038082,14]
[359918283,1746420647487,-316.53,0.00038082,14]
[359918284,1746420647497,-1014.81,0.000381,30]
[359918285,1746420647507,-495.25768979,0.00038141,38]
[359918286,1746420647517,-563.93475755,0.00038243,2]
[359918287,1746420647530,-495.25768979,0.00038314,38]
[359918288,1746420647539,-257.1558721,0.00038356,14]
[359918289,1746420647549,-400.0,0.00038356,2]
[359918290,1746420647559,-400.0,0.00038356,14]
[359918291,1746420647576,-400.0,0.00038356,14]
[359918292,1746420647585,-395.43138161,0.00038356,14]
[359918293,1746420647594,-511.12,0.00038356,14]
[359918294,1746420647603,-400.0,0.00038356,2]
[359918295,1746420647612,-394.5,0.00038356,14]
[359918296,1746420647621,-738.0439221,0.00038403,4]
[359918297,1746420647630,-563.93475755,0.00038403,2]
[359918298,1746420647639,-202.9054108,0.0003841,2]
[359918299,1746420647649,-495.25768979,0.00038486,38]
[359918300,1746420647658,-400.0,0.0003863,2]
[359918301,1746420647667,-400.0,0.0003863,14]
[359918302,1746420647676,-400.0,0.0003863,14]
[359918303,1746420647685,-511.12,0.0003863,14]
[359918304,1746420647695,-537.7841876,0.0003863,2]
[359918305,1746420647704,-495.25768979,0.00038659,39]
[359918306,1746420647713,-563.93475755,0.00038828,2]
[359918307,1746420647722,-495.25768979,0.00038831,39]
[359918308,1746420647731,-442.66,0.000389,2]
[359918309,1746420647739,-1176.90223179,0.00038901,7]
[359918310,1746420647747,-1176.90223179,0.00038901,7]
[359918311,1746420647755,-203.60738236,0.00038904,2]
[359918312,1746420647763,-400.0,0.00038904,14]
[359918313,1746420647770,-400.0,0.00038904,14]
[359918314,1746420647778,-511.12,0.00038904,14]
[359918315,1746420647786,-280.089592,0.00038933,2]
[359918316,1746420647793,-495.25768979,0.00039003,39]
[359918317,1746420647799,-563.93475755,0.00039117,2]
[359918318,1746420647805,-2243.0,0.00039164,2]
[359918319,1746420647812,-495.25768979,0.00039176,40]
[359918320,1746420647819,-400.0,0.00039178,14]
[359918321,1746420647825,-400.0,0.00039178,14]
[359918322,1746420647832,-511.12,0.00039178,14]
[359918323,1746420647839,-495.25768979,0.00039348,40]
[359918324,1746420647846,-563.93475755,0.00039389,2]
[359918325,1746420647852,-400.0,0.00039452,14]
[359918326,1746420647861,-400.0,0.00039452,14]
[359918327,1746420647868,-511.12,0.00039452,14]
[359918328,1746420647875,-563.93475755,0.00039516,2]
[359918329,1746420647883,-495.25768979,0.00039521,40]
[359918330,1746420647890,-495.25768979,0.00039693,41]
[359918331,1746420647896,-1014.81,0.000397,30]
[359918332,1746420647903,-151.0,0.0003971,7]
[359918333,1746420647910,-153.62109331,0.0003971,7]
[359918334,1746420647917,-400.0,0.00039726,14]
[359918335,1746420647924,-400.0,0.00039726,14]
[359918336,1746420648010,-511.12,0.00039726,14]
[359918337,1746420648018,-563.93475761,0.00039781,2]
[359918338,1746420648027,-792.966,0.00039801,7]
[359918339,1746420648036,-495.25768979,0.00039866,41]
[359918340,1746420648046,-4175.35,0.000399,30]
[359918341,1746420648055,-500.0,0.00039973,5]
[359918342,1746420648064,-512.28344751,0.00039973,5]
[359918343,1746420648074,-3321.87192635,0.0003999,2]
[359918344,1746420648084,-742.6887578,0.0003999,3]
[359918345,1746420648093,-189.90093025,0.00039999,30]
[359918346,1746420648103,-214.8,0.00039999,30]
[359918347,1746420648114,-160.0,0.0004,3]
[359918348,1746420648123,-9825.18805978,0.0004,2]
[359918349,1746420648133,-6972.64612454,0.0004,3]
[359918388,1746421537138,-288.38037,0.000298,120]
[359918389,1746421537158,-240.79217252,0.000314,2]
[359918390,1746421537179,-288.38037,0.000315,120]
[359918391,1746421537199,-288.38037,0.000332,120]
[359918392,1746421537219,-217.1392674,0.00034604,2]
[359918393,1746421537242,-57.34171822,0.000349,120]
[359918394,1746421542257,-231.03865178,0.000349,120]
[359918395,1746421542278,-159.57982962,0.00035516,2]
[359918396,1746421542299,-1329.14306381,0.00035614,3]
[359918397,1746421635092,-238.076153,0.00027397,2]
[359918398,1746421635115,-238.076153,0.00033165,2]
[359918399,1746421635136,-170.85693619,0.00035614,3]
[359918400,1746421635156,-233.0,0.00035615,3]
[359918401,1746421635179,-400.0,0.00035615,2]
[359918402,1746421635200,-444.41,0.00035616,14]
[359918403,1746421635221,-400.0,0.00035616,14]
[359918404,1746421635243,-302.54110127,0.00035616,14]
[359918405,1746421635263,-400.0,0.00035616,14]
[359918406,1746421635285,-400.0,0.00035616,14]
[359918407,1746421635306,-400.0,0.00035616,14]
[359918408,1746421635327,-400.0,0.00035616,14]
[359918409,1746421635347,-255.51075935,0.00035616,14]
[359918410,1746421635368,-400.0,0.00035616,14]
[359918411,1746421635389,-400.0,0.00035616,14]
[359918412,1746421635409,-400.0,0.00035616,14]
[359918413,1746421635430,-400.0,0.00035616,14]
[359918414,1746421635450,-404.15430126,0.00035616,14]
[359918415,1746421635470,-488.11,0.00035616,14]
[359918416,1746421635494,-400.0,0.00035616,14]
[359918417,1746421635517,-400.0,0.00035616,14]
[359918418,1746421635540,-400.0,0.00035616,14]
[359918419,1746421635562,-400.0,0.00035616,14]
[359918420,1746421635583,-400.0,0.00035616,14]
[359918421,1746421635603,-401.17642277,0.00035616,14]
[359918422,1746421635622,-447.22891845,0.00035616,14]
[359918423,1746421654152,-463.06792229,0.00035,14]
[359918426,1746421750137,-504.2199665,0.000349,120]
[359918427,1746421750157,-1536.93207771,0.00035,14]
[359918428,1746421750177,-1352.0,0.00035,14]
[359918429,1746421770631,150.0,0.00033516,2]
[359918443,1746421832654,-159.5798296,0.00035516,2]
[359918444,1746421832664,-213.63878531,0.00035615,7]
[359918445,1746421832673,-500.0,0.00035615,7]
[359918446,1746421832683,-495.92745558,0.00035615,7]
[359918447,1746421832692,-300.0,0.00035615,2]
[359918448,1746421832702,-198.21474967,0.00035615,7]
[359918449,1746421832711,-516.1692356,0.00035616,14]
[359918450,1746421832721,-400.0,0.00035616,14]
[359918451,1746421832730,-400.0,0.00035616,14]
[359918452,1746421832740,-400.0,0.00035616,14]
[359918453,1746421832750,-400.0,0.00035616,14]
[359918454,1746421832759,-298.91884929,0.00035616,14]
[359918455,1746421832768,-400.0,0.00035616,14]
[359918456,1746421832778,-400.0,0.00035616,14]
[359918457,1746421832788,-400.0,0.00035616,14]
[359918458,1746421832797,-506.08830026,0.00035616,14]
[359918459,1746421832807,-400.0,0.00035616,14]
[359918460,1746421832816,-400.0,0.00035616,14]
[359918461,1746421832825,-400.0,0.00035616,14]
[359918462,1746421832834,-400.0,0.00035616,14]
[359918463,1746421832844,-400.0,0.00035616,14]
[359918464,1746421832854,-400.0,0.00035616,14]
[359918465,1746421832863,-527.03,0.00035616,14]
[359918466,1746421832873,-400.0,0.00035616,14]
[359918467,1746421832882,-308.74041403,0.00035616,14]
[359918468,1746421832892,-414.93887682,0.00035616,14]
[359918469,1746421832901,-400.0,0.00035616,14]
[359918470,1746421832911,-400.0,0.00035616,14]
[359918471,1746421832921,-400.0,0.00035616,14]
[359918472,1746421832931,-522.30833154,0.00035616,14]
[359918473,1746421832940,-400.0,0.00035616,14]
[359918474,1746421832954,-400.0,0.00035616,14]
[359918475,1746421832964,-400.0,0.00035616,14]
[359918476,1746421832973,-500.0,0.00035616,14]
[359918477,1746421832983,-487.8,0.00035616,14]
[359918478,1746421832993,-400.0,0.00035616,14]
[359918479,1746421833002,-400.0,0.00035616,14]
[359918480,1746421833011,-400.0,0.00035616,14]
[359918481,1746421833020,-400.0,0.00035616,14]
[359918482,1746421833030,-400.0,0.00035616,14]
[359918483,1746421833040,-400.0,0.00035616,14]
[359918484,1746421833049,-400.0,0.00035616,14]
[359918485,1746421833058,-400.0,0.00035616,14]
[359918486,1746421833068,-400.0,0.00035616,14]
[359918487,1746421833077,-400.0,0.00035616,14]
[359918488,1746421833086,-400.0,0.00035616,14]
[359918489,1746421833095,-400.0,0.00035616,14]
[359918490,1746421833105,-400.0,0.00035616,14]
[359918491,1746421833114,-400.0,0.00035616,14]
[359918492,1746421833123,-400.0,0.00035616,14]
[359918493,1746421833132,-400.0,0.00035616,14]
[359918494,1746421833141,-400.0,0.00035616,14]
[359918495,1746421833154,-401.35479794,0.00035616,14]
[359918496,1746421833164,-400.0,0.00035616,14]
[359918497,1746421833173,-400.0,0.00035616,14]
[359918498,1746421833182,-413.12073136,0.00035616,14]
[359918499,1746421833193,-400.0,0.00035616,14]
[359918500,1746421833202,-400.0,0.00035616,14]
[359918501,1746421833211,-401.98824451,0.00035616,14]
[359918502,1746421833221,-500.0,0.00035616,14]
[359918503,1746421833230,-429.79,0.00035616,14]
[359918504,1746421833240,-400.0,0.00035616,14]
[359918505,1746421833250,-400.0,0.00035616,14]
[359918506,1746421833259,-400.0,0.00035616,14]
[359918507,1746421833268,-400.0,0.00035616,14]
[359918508,1746421833278,-227.38721646,0.00035616,14]
[359918509,1746421833289,-300.0,0.00035616,14]
[359918510,1746421833298,-55.91533294,0.00035616,14]
[359918511,1746421833312,-399.01732881,0.00035616,14]
[359918512,1746421833321,-400.0,0.00035616,14]
[359918513,1746421833331,-400.0,0.00035616,14]
[359918514,1746421833340,-400.0,0.00035616,14]
[359918515,1746421833349,-400.0,0.00035616,14]
[359918516,1746421833358,-400.0,0.00035616,14]
[359918517,1746421833368,-400.0,0.00035616,14]
[359918518,1746421833377,-400.0,0.00035616,14]
[359918519,1746421833386,-501.72701528,0.00035616,14]
[359918520,1746421833395,-400.0,0.00035616,14]
[359918521,1746421833404,-400.0,0.00035616,14]
[359918522,1746421833413,-400.0,0.00035616,14]
[359918523,1746421833422,-501.95434774,0.00035616,14]
[359918524,1746421833431,-502.122541,0.00035616,14]
[359918525,1746421833440,-400.0,0.00035616,14]
[359918526,1746421833449,-406.107487,0.00035616,14]
[359918527,1746421833459,-400.0,0.00035616,14]
[359918528,1746421833468,-400.0,0.00035616,14]
[359918529,1746421833478,-205.15851775,0.00035616,14]
[359918530,1746421833487,-405.05391411,0.00035616,14]
[359918531,1746421833499,-400.0,0.00035616,14]
[359918532,1746421833509,-400.0,0.00035616,14]
[359918533,1746421833518,-354.76991366,0.00035616,14]
[359918534,1746421833528,-400.0,0.00035616,14]
[359918535,1746421833537,-400.0,0.00035616,14]
[359918536,1746421833547,-400.0,0.00035616,14]
[359918537,1746421833557,-400.0,0.00035616,14]
[359918538,1746421833566,-400.0,0.00035616,14]
[359918539,1746421833575,-227.10064014,0.00035616,14]
[359918540,1746421833585,-400.0,0.00035616,14]
[359918541,1746421833594,-400.0,0.00035616,14]
[359918542,1746421833603,-406.24137316,0.00035616,14]
[359918543,1746421833613,-400.0,0.00035616,14]
[359918544,1746421833622,-400.0,0.00035616,14]
[359918545,1746421833632,-796.87,0.00035616,14]
[359918546,1746421833642,-541.52,0.00035616,14]
[359918547,1746421833652,-400.0,0.00035616,14]
[359918548,1746421833661,-400.0,0.00035616,14]
[359918549,1746421833671,-400.0,0.00035616,14]
[359918550,1746421833681,-410.16230876,0.00035616,14]
[359918551,1746421833691,-400.0,0.00035616,14]
[359918552,1746421833700,-400.0,0.00035616,14]
[359918553,1746421833710,-400.0,0.00035616,14]
[359918554,1746421833720,-476.63,0.00035616,14]
[359918555,1746421833730,-496.14,0.00035616,14]
[359918556,1746421833740,-400.0,0.00035616,14]
[359918557,1746421833750,-432.6,0.00035616,14]
[359918558,1746421833760,-570.61,0.00035616,14]
[359918559,1746421833770,-400.0,0.00035616,14]
[359918560,1746421833780,-400.0,0.00035616,14]
[359918561,1746421833790,-400.0,0.00035616,14]
[359918562,1746421833800,-400.0,0.00035616,14]
[359918563,1746421833809,-400.0,0.00035616,14]
[359918564,1746421833819,-400.0,0.00035616,14]
[359918565,1746421833829,-400.0,0.00035616,14]
[359918566,1746421833838,-400.0,0.00035616,14]
[359918567,1746421833847,-400.0,0.00035616,14]
[359918568,1746421833857,-400.0,0.00035616,14]
[359918569,1746421833867,-404.87842049,0.00035616,14]
[359918570,1746421833876,-400.0,0.00035616,2]
[359918571,1746421833886,-307.03893916,0.00035616,14]
[359918572,1746421833898,-92.96106084,0.00035616,14]
[359918573,1746421833907,-400.0,0.00035616,14]
[359918574,1746421833916,-400.0,0.00035616,14]
[359918575,1746421833926,-400.0,0.00035616,14]
[359918576,1746421833936,-400.0,0.00035616,14]
[359918577,1746421833945,-400.0,0.00035616,14]
[359918578,1746421833955,-400.0,0.00035616,14]
[359918579,1746421833964,-1195.42,0.00035616,14]
[359918580,1746421833974,-632.46,0.00035616,14]
[359918581,1746421833984,-400.0,0.00035616,14]
[359918582,1746421833993,-438.46,0.00035616,14]
[359918583,1746421834003,-400.0,0.00035616,14]
[359918584,1746421834014,-400.0,0.00035616,14]
[359918585,1746421834023,-406.89506462,0.00035616,14]
[359918586,1746421834032,-400.0,0.00035616,14]
[359918587,1746421834042,-400.0,0.00035616,14]
[359918588,1746421834051,-660.98,0.00035616,14]
[359918589,1746421834061,-464.79782625,0.00035616,14]
[359918590,1746421834071,-400.0,0.00035616,14]
[359918591,1746421834080,-400.0,0.00035616,14]
[359918592,1746421834089,-400.0,0.00035616,14]
[359918593,1746421834099,-500.0,0.00035673,2]
[359918594,1746421834108,-500.0,0.00035673,5]
[359918595,1746421834117,-500.0,0.00035673,5]
[359918596,1746421834126,-500.0,0.00035673,5]
[359918597,1746421834136,-503.91393012,0.00035673,5]
[359918598,1746421834146,-500.0,0.00035673,5]
[359918599,1746421834159,-541.52,0.00035698,14]
[359918600,1746421834168,-587.08,0.00035889,14]
[359918601,1746421834177,-541.52,0.00035889,14]
[359918602,1746421834187,-400.0,0.0003589,14]
[359918603,1746421834197,-400.0,0.0003589,14]
[359918604,1746421834207,-400.0,0.0003589,14]
[359918605,1746421834216,-400.0,0.0003589,14]
[359918606,1746421834225,-524.18,0.0003589,14]
[359918607,1746421834235,-423.66,0.0003589,14]
[359918608,1746421834244,-479.3,0.0003589,14]
[359918609,1746421834254,-435.12129069,0.0003589,14]
[359918610,1746421834263,-188.42,0.0003589,14]
[359918611,1746421834272,-400.0,0.0003589,14]
[359918612,1746421834281,-400.0,0.0003589,14]
[359918613,1746421834290,-436.91,0.0003589,14]
[359918614,1746421834300,-266.21,0.0003589,14]
[359918615,1746421834309,-525.14,0.0003589,14]
[359918616,1746421834318,-400.0,0.0003589,14]
[359918617,1746421834327,-400.0,0.0003589,14]
[359918618,1746421834336,-400.0,0.0003589,14]
[359918619,1746421834345,-504.99595822,0.0003589,14]
[359918620,1746421834354,-400.0,0.0003589,14]
[359918621,1746421834364,-400.0,0.0003589,14]
[359918622,1746421834373,-400.0,0.0003589,14]
[359918623,1746421834382,-400.0,0.0003589,14]
[359918624,1746421834391,-400.0,0.0003589,14]
[359918625,1746421834401,-400.0,0.0003589,14]
[359918626,1746421834412,-400.0,0.0003589,14]
[359918627,1746421834421,-400.0,0.0003589,14]
[359918628,1746421834430,-343.21134117,0.0003589,14]
[359918629,1746421834440,-400.0,0.0003589,14]
[359918630,1746421834449,-400.0,0.0003589,14]
[359918631,1746421834458,-170.56,0.0003589,14]
[359918632,1746421834468,-400.0,0.0003589,14]
[359918633,1746421834477,-400.0,0.0003589,14]
[359918634,1746421834486,-240.77,0.0003589,14]
[359918635,1746421834496,-400.0,0.0003589,14]
[359918636,1746421834505,-400.0,0.0003589,14]
[359918637,1746421834514,-400.0,0.0003589,14]
[359918638,1746421834523,-400.0,0.0003589,14]
[359918639,1746421834533,-400.0,0.0003589,14]
[359918640,1746421834542,-400.0,0.0003589,14]
[359918641,1746421834551,-203.62886039,0.0003589,14]
[359918642,1746421834560,-400.0,0.0003589,14]
[359918643,1746421834569,-400.0,0.0003589,14]
[359918644,1746421834578,-400.0,0.0003589,14]
[359918645,1746421834587,-305.52403682,0.0003589,14]